bitfinex-derivatives/quotes_BTCF0:USTF0_20241013
["timestamp","ask_amount","ask_price","bid_price","bid_amount"]
[1728803089463,0.08390718,62956.0,62955.0,0.13687855]
[1728803089969,0.08390718,62956.0,62955.0,0.112]
[1728803096160,0.08390718,62956.0,62955.0,0.002]
[1728803097564,0.0254,62956.0,62955.0,0.002]
[1728803104771,0.20136,62956.0,62955.0,0.002]
[1728803105772,0.25987892,62956.0,62955.0,0.002]
[1728803107470,0.36987892,62956.0,62955.0,0.002]
[1728803107660,0.36987892,62956.0,62946.0,0.30709905]
[1728803107661,0.40047892,62956.0,62946.0,0.22765505]
[1728803107864,0.440244,62947.0,62942.0,0.06597048]
[1728803108061,0.11,62943.0,62942.0,0.00238283]
[1728803109571,0.1354,62943.0,62942.0,0.00238283]
[1728803109774,0.1354,62943.0,62942.0,0.00338283]
[1728803109975,0.1354,62943.0,62942.0,0.00438283]
[1728803110177,0.19258589,62943.0,62942.0,0.00438283]
[1728803110363,0.1354,62943.0,62942.0,0.00438283]
[1728803110767,0.16087105,62943.0,62942.0,0.00438283]
[1728803110974,0.21801919,62943.0,62942.0,0.00438283]
[1728803111171,0.16087105,62943.0,62942.0,0.00438283]
[1728803114971,0.16087105,62943.0,62928.0,0.3608]
[1728803114972,0.27087105,62943.0,62928.0,0.3608]
[1728803115184,0.11,62933.0,62928.0,0.4708]
[1728803115884,0.11,62929.0,62925.0,0.29129905]
[1728803116091,0.11,62927.0,62925.0,0.2277114]
[1728803116384,0.11,62929.0,62925.0,0.2277114]
[1728803116587,0.11,62929.0,62928.0,0.004]
[1728803116777,0.11,62929.0,62928.0,0.007]
[1728803116973,0.11,62929.0,62928.0,0.003]
[1728803117382,0.11,62929.0,62925.0,0.2347114]
[1728803117576,0.11,62929.0,62925.0,0.2387114]
[1728803118583,0.11,62927.0,62925.0,0.2387114]
[1728803119179,0.11,62927.0,62925.0,0.2277114]
[1728803119995,0.11,62927.0,62925.0,0.2367114]
[1728803121088,0.11,62927.0,62925.0,0.009]
[1728803123383,0.11,62930.0,62926.0,0.11]
[1728803125478,0.11,62930.0,62926.0,0.113]
[1728803125876,0.11,62930.0,62926.0,0.117]
[1728803128481,0.07151,62927.0,62926.0,0.117]
[1728803131898,0.07151,62927.0,62926.0,0.007]
[1728803133088,0.18151,62927.0,62926.0,0.007]
[1728803133284,0.18151,62927.0,62917.0,0.22774285]
[1728803133285,0.079477,62921.0,62917.0,0.22774285]
[1728803133500,0.11,62918.0,62917.0,0.22774285]
[1728803134598,0.11,62918.0,62917.0,0.23974285]
[1728803135306,0.11,62918.0,62917.0,0.25274285]
[1728803136297,0.18152,62918.0,62917.0,0.25274285]
[1728803138500,0.20662825,62918.0,62917.0,0.25274285]
[1728803139290,0.21933825,62918.0,62917.0,0.25274285]
[1728803140895,0.21933825,62918.0,62912.0,0.04991148]
[1728803140896,1.40613825,62918.0,62912.0,0.04991148]
[1728803141202,0.079491,62910.0,62905.0,0.06358765]
[1728803141407,0.079491,62910.0,62900.0,0.08182135]
[1728803141408,0.11,62906.0,62902.0,0.06358765]
[1728803141594,0.11,62903.0,62902.0,0.06358765]
[1728803142198,0.11,62903.0,62901.0,0.079501]
[1728803142900,0.11,62903.0,62902.0,0.014]
[1728803143097,0.18153,62903.0,62902.0,0.028]
[1728803144498,0.18153,62903.0,62902.0,0.014]
[1728803144696,0.18253,62903.0,62902.0,0.014]
[1728803144906,0.18353,62903.0,62901.0,0.102501]
[1728803145405,0.18353,62903.0,62902.0,0.013]
[1728803145605,0.18253,62903.0,62902.0,0.013]
[1728803145809,0.18353,62903.0,62902.0,0.023]
[1728803148013,0.18353,62903.0,62902.0,0.01]
[1728803148205,0.18253,62903.0,62901.0,0.002]
[1728803148395,0.18353,62903.0,62901.0,0.002]
[1728803148599,0.18353,62903.0,62902.0,0.002]
[1728803149211,0.18253,62903.0,62902.0,0.002]
[1728803149511,0.29481,62903.0,62902.0,0.002]
[1728803151102,0.29481,62903.0,62902.0,0.009]
[1728803152203,0.30752,62903.0,62902.0,0.009]
[1728803154409,0.19752,62903.0,62902.0,0.009]
[1728803154608,0.30752,62903.0,62902.0,0.009]
[1728803154909,0.66832,62903.0,62902.0,0.009]
[1728803156708,0.30752,62903.0,62902.0,0.009]
[1728803157110,0.66832,62903.0,62902.0,0.009]
[1728803157713,0.30752,62903.0,62902.0,0.009]
[1728803157912,0.66832,62903.0,62902.0,0.009]
[1728803161811,0.30752,62903.0,62902.0,0.009]
[1728803162310,0.66832,62903.0,62902.0,0.009]
[1728803163314,0.77832,62903.0,62902.0,0.009]
[1728803163908,0.79103,62903.0,62902.0,0.009]
[1728803165622,0.81629256,62903.0,62902.0,0.009]
[1728803167019,0.079506,62897.0,62892.0,0.06335002]
[1728803167318,0.4708,62893.0,62891.0,0.06335002]
[1728803167516,0.11,62892.0,62890.0,0.06335002]
[1728803167717,0.11,62892.0,62888.0,0.06335002]
[1728803168113,0.11,62890.0,62888.0,0.06335002]
[1728803168320,0.11,62892.0,62888.0,0.06335002]
[1728803168925,0.07155,62890.0,62889.0,0.01638478]
[1728803169927,0.07155,62890.0,62889.0,0.01938478]
[1728803170325,0.07155,62890.0,62889.0,0.0827348]
[1728803170635,0.07255,62890.0,62889.0,0.01238478]
[1728803171221,0.07355,62890.0,62889.0,0.01238478]
[1728803172818,0.08627,62890.0,62889.0,0.01238478]
[1728803177124,0.08627,62890.0,62889.0,0.04258478]
[1728803177923,0.19757,62890.0,62889.0,0.04258478]
[1728803179922,0.19757,62890.0,62889.0,0.1059348]
[1728803181829,0.19757,62890.0,62889.0,0.04258478]
[1728803183235,0.19757,62890.0,62889.0,0.10355002]
[1728803185238,0.30757,62890.0,62889.0,0.10355002]
[1728803186533,0.30757,62890.0,62889.0,0.0402]
[1728803189530,0.37912,62890.0,62889.0,0.0402]
[1728803192646,0.39184,62890.0,62889.0,0.0402]
[1728803195735,0.39184,62890.0,62889.0,0.01]
[1728803195939,0.50184,62890.0,62889.0,0.01]
[1728803196436,0.50184,62890.0,62881.0,0.06358767]
[1728803196636,0.3608,62882.0,62880.0,0.06358767]
[1728803196938,0.11,62881.0,62880.0,0.06358767]
[1728803197338,0.22,62881.0,62878.0,0.06358767]
[1728803197530,0.22,62879.0,62878.0,0.06358767]
[1728803197729,0.22,62879.0,62877.0,0.06358767]
[1728803197930,0.22,62878.0,62877.0,0.06358767]
[1728803198130,0.22,62878.0,62874.0,0.06358767]
[1728803198329,0.22,62878.0,62872.0,0.00238551]
[1728803198330,0.11,62875.0,62873.0,0.06358767]
[1728803198533,0.11,62874.0,62873.0,0.06358767]
[1728803198726,0.11,62874.0,62873.0,0.07652086]
[1728803199339,0.11,62875.0,62873.0,0.01293319]
[1728803199542,0.11,62875.0,62874.0,0.01293319]
[1728803199543,0.111,62875.0,62874.0,0.01293319]
[1728803199743,0.221,62875.0,62874.0,0.01293319]
[1728803200634,0.112,62875.0,62874.0,0.01293319]
[1728803201140,0.002,62875.0,62874.0,0.01393329]
[1728803201332,0.112,62875.0,62874.0,0.001]
[1728803201640,0.112,62875.0,62874.0,0.004]
[1728803203339,0.112,62875.0,62874.0,0.06749793]
[1728803203741,0.112,62875.0,62874.0,0.01693362]
[1728803205335,0.112,62875.0,62874.0,0.0804156]
[1728803208644,0.112,62875.0,62874.0,0.08041527]
[1728803209036,0.112,62875.0,62874.0,0.004]
[1728803209944,0.21935,62875.0,62874.0,0.004]
[1728803211050,0.23207,62875.0,62874.0,0.004]
[1728803212242,0.30364,62875.0,62874.0,0.004]
[1728803214044,0.41364,62875.0,62874.0,0.004]
[1728803214553,0.44654,62875.0,62874.0,0.004]
[1728803215451,0.45926,62875.0,62874.0,0.004]
[1728803215650,0.45826,62875.0,62874.0,0.001]
[1728803215846,0.45926,62875.0,62874.0,0.003]
[1728803216147,0.45926,62875.0,62874.0,0.005]
[1728803217148,0.82006,62875.0,62874.0,0.005]
[1728803217963,0.45926,62875.0,62874.0,0.005]
[1728803218164,0.82006,62875.0,62874.0,0.005]
[1728803219565,0.84508011,62875.0,62874.0,0.005]
[1728803220269,0.22,62869.0,62857.0,0.06348198]
[1728803220460,0.22,62869.0,62856.0,0.079558]
[1728803220461,0.5808,62862.0,62856.0,0.14303998]
[1728803220766,0.5808,62862.0,62856.0,0.079558]
[1728803221164,0.5808,62862.0,62852.0,0.14304498]
[1728803221356,0.5808,62862.0,62852.0,0.079563]
[1728803221357,0.11,62853.0,62852.0,0.079563]
[1728803221559,0.11,62853.0,62852.0,0.15598191]
[1728803221760,0.11,62853.0,62852.0,0.09249993]
[1728803222665,0.111,62853.0,62852.0,0.09249993]
[1728803222868,0.112,62853.0,62852.0,0.09249993]
[1728803224157,0.112,62853.0,62852.0,0.079563]
[1728803224459,0.112,62853.0,62852.0,0.08453887]
[1728803224863,0.112,62853.0,62852.0,0.09250026]
[1728803225069,0.112,62853.0,62852.0,0.08453887]
[1728803225265,0.112,62853.0,62852.0,0.15598224]
[1728803226067,0.18359,62853.0,62852.0,0.14802085]
[1728803227364,0.18359,62853.0,62852.0,0.15594365]
[1728803227566,0.27051,62853.0,62852.0,0.15594365]
[1728803227761,0.28323,62853.0,62852.0,0.079563]
[1728803227977,0.28323,62853.0,62852.0,0.09250029]
[1728803228171,0.28323,62853.0,62852.0,0.08453888]
[1728803228965,0.35482,62853.0,62852.0,0.08453888]
[1728803230975,0.24482,62853.0,62852.0,0.08453888]
[1728803231178,0.24482,62853.0,62852.0,0.11583888]
[1728803231179,0.35482,62853.0,62852.0,0.11583888]
[1728803231365,0.35482,62853.0,62852.0,0.110863]
[1728803231562,0.35482,62853.0,62852.0,0.11583889]
[1728803232267,0.36754,62853.0,62852.0,0.11583889]
[1728803238985,0.36754,62853.0,62852.0,0.110863]
[1728803239176,0.36754,62853.0,62852.0,0.11583889]
[1728803240371,0.36754,62853.0,62852.0,0.18724371]
[1728803241385,0.36754,62853.0,62852.0,0.12380032]
[1728803244379,0.36754,62853.0,62852.0,0.20298785]
[1728803245376,0.36754,62853.0,62852.0,0.29449049]
[1728803246394,0.36754,62853.0,62852.0,0.21530296]
[1728803248288,0.36754,62853.0,62852.0,0.2032874]
[1728803249388,0.36754,62853.0,62852.0,0.21549031]
[1728803249885,0.36754,62853.0,62852.0,0.21051442]
[1728803250091,0.36754,62853.0,62852.0,0.21549031]
[1728803251985,0.36754,62853.0,62852.0,0.18419031]
[1728803253591,0.36754,62853.0,62852.0,0.17125299]
[1728803253789,0.36754,62853.0,62852.0,0.18419031]
[1728803255189,0.36754,62853.0,62852.0,0.29348588]
[1728803257088,0.36754,62853.0,62852.0,0.18419031]
[1728803259196,0.36754,62853.0,62852.0,0.1842325]
[1728803259395,0.36754,62853.0,62852.0,0.27976238]
[1728803261301,0.36754,62853.0,62852.0,0.27976255]
[1728803263193,0.36754,62853.0,62852.0,0.18423267]
[1728803268501,0.36754,62853.0,62852.0,0.18418009]
[1728803270201,0.36754,62853.0,62852.0,0.27970997]
[1728803270403,0.36754,62853.0,62852.0,0.18418009]
[1728803270600,0.36754,62853.0,62852.0,0.27970997]
[1728803272804,0.33171354,62853.0,62852.0,0.18417992]
[1728803273009,0.29395,62853.0,62852.0,0.17920403]
[1728803273398,0.29395,62853.0,62852.0,0.17919513]
[1728803274111,0.29395,62853.0,62852.0,0.18715656]
[1728803274408,0.29395,62853.0,62852.0,0.28268345]
[1728803275393,0.29395,62853.0,62852.0,0.28765934]
[1728803275898,0.29395,62853.0,62852.0,0.27969791]
[1728803276904,0.29395,62853.0,62852.0,0.18417102]
[1728803277399,0.29395,62853.0,62852.0,0.27969791]
[1728803278798,0.29395,62853.0,62852.0,0.18802721]
[1728803279105,0.29395,62853.0,62852.0,0.18416733]
[1728803280911,0.29395,62853.0,62852.0,0.09250032]
[1728803284713,0.29395,62853.0,62852.0,0.01293732]
[1728803285022,0.29395,62853.0,62851.0,0.00202097]
[1728803285199,0.11,62852.0,62851.0,0.00202097]
[1728803285708,0.11,62852.0,62850.0,0.00202097]
[1728803285907,0.11,62851.0,62850.0,0.00202097]
[1728803286109,0.11,62851.0,62850.0,0.01495935]
[1728803286415,0.11,62851.0,62850.0,0.10681313]
[1728803286810,0.23409,62851.0,62850.0,0.10681313]
[1728803287018,0.3184,62851.0,62850.0,0.10681313]
[1728803288112,0.3194,62851.0,62850.0,0.01595935]
[1728803288519,0.3204,62851.0,62850.0,0.01695935]
[1728803288709,0.3204,62851.0,62850.0,0.01695824]
[1728803291509,0.3204,62851.0,62850.0,0.09652602]
[1728803292618,0.3204,62851.0,62850.0,0.01695824]
[1728803292814,0.3204,62851.0,62850.0,0.10878487]
[1728803294115,0.4304,62851.0,62850.0,0.10878487]
[1728803294310,1.50772,62851.0,62850.0,0.1733898]
[1728803294515,1.50772,62851.0,62850.0,0.08156317]
[1728803294718,1.53992,62851.0,62850.0,0.002]
[1728803295411,1.56511715,62851.0,62850.0,0.002]
[1728803295820,1.56511715,62851.0,62850.0,0.001]
[1728803295821,1.56411715,62851.0,62850.0,0.001]
[1728803296117,1.56411715,62851.0,62850.0,0.002]
[1728803296118,1.56511715,62851.0,62850.0,0.002]
[1728803296608,1.92591715,62851.0,62850.0,0.002]
[1728803298120,1.92591715,62851.0,62850.0,0.04967178]
[1728803299217,1.56511715,62851.0,62850.0,0.04967178]
[1728803299420,1.92591715,62851.0,62850.0,0.002]
[1728803299623,1.32591715,62851.0,62850.0,0.002]
[1728803299818,0.96511715,62851.0,62850.0,0.002]
[1728803300127,1.32591715,62851.0,62850.0,0.002]
[1728803300919,0.079568,62849.0,62843.0,0.12724678]
[1728803301130,0.11,62844.0,62843.0,0.12724678]
[1728803301422,0.11,62844.0,62843.0,0.079575]
[1728803302014,0.11,62844.0,62843.0,0.080575]
[1728803302613,0.111,62844.0,62843.0,0.080575]
[1728803303018,0.112,62844.0,62843.0,0.080575]
[1728803305624,0.1826,62844.0,62843.0,0.079575]
[1728803305922,0.1836,62844.0,62843.0,0.079575]
[1728803306311,0.2552,62844.0,62843.0,0.079575]
[1728803306823,0.26792,62844.0,62843.0,0.079575]
[1728803307914,0.26792,62844.0,62843.0,0.12724678]
[1728803308424,0.26792,62844.0,62843.0,0.079575]
[1728803309723,0.3793,62844.0,62843.0,0.079575]
[1728803317527,0.3793,62844.0,62843.0,0.12723572]
[1728803317828,0.3793,62844.0,62843.0,0.079575]
[1728803318631,0.39202,62844.0,62843.0,0.079575]
[1728803321419,0.39202,62844.0,62841.0,0.04766072]
[1728803321626,0.32042,62844.0,62841.0,0.04766072]
[1728803321927,0.32042,62844.0,62842.0,0.04766072]
[1728803322129,0.32042,62844.0,62841.0,0.04766072]
[1728803322130,0.11,62843.0,62841.0,0.04766072]
[1728803322329,0.11,62842.0,62841.0,0.04766072]
[1728803322932,0.11,62842.0,62840.0,0.04766072]
[1728803323138,0.21042,62844.0,62841.0,0.04766072]
[1728803323337,0.1816,62842.0,62841.0,0.04766072]
[1728803323535,0.1816,62842.0,62839.0,0.14322286]
[1728803323834,0.11,62840.0,62839.0,0.14322286]
[1728803324428,0.11,62840.0,62839.0,0.079579]
[1728803325035,0.18161,62840.0,62839.0,0.079579]
[1728803325343,0.18261,62840.0,62839.0,0.079579]
[1728803325826,0.18361,62840.0,62839.0,0.079579]
[1728803330539,0.19634,62840.0,62839.0,0.079579]
[1728803331632,0.19634,62840.0,62839.0,0.14324197]
[1728803333333,0.30773,62840.0,62839.0,0.14324197]
[1728803334439,0.32046,62840.0,62839.0,0.14324197]
[1728803336944,0.32046,62840.0,62839.0,0.079579]
[1728803338035,0.32046,62840.0,62839.0,0.12732254]
[1728803338341,0.39207,62840.0,62839.0,0.12732254]
[1728803341940,0.39207,62840.0,62839.0,0.079579]
[1728803343939,0.28207,62840.0,62839.0,0.079579]
[1728803344145,0.39207,62840.0,62839.0,0.079579]
[1728803349149,0.39207,62840.0,62839.0,0.15914217]
[1728803349347,0.39207,62840.0,62839.0,0.079579]
[1728803349547,0.39207,62840.0,62839.0,0.15914217]
[1728803350041,0.39207,62840.0,62839.0,0.25146908]
[1728803350042,0.28207,62840.0,62839.0,0.25146908]
[1728803350349,0.39207,62840.0,62839.0,0.15914217]
[1728803350651,0.39207,62840.0,62839.0,0.25146739]
[1728803351042,0.39207,62840.0,62839.0,0.15914217]
[1728803351445,0.39207,62840.0,62839.0,0.2514767]
[1728803353146,0.39207,62840.0,62839.0,0.079579]
[1728803391681,0.39207,62840.0,62839.0,0.14328647]
[1728803392872,0.39207,62840.0,62839.0,0.079579]
[1728803393370,0.39207,62840.0,62839.0,0.14328096]
[1728803396366,0.28207,62840.0,62839.0,0.14328096]
[1728803397079,0.28207,62840.0,62839.0,0.079579]
[1728803397274,0.39207,62840.0,62839.0,0.079579]
[1728803397466,0.28207,62840.0,62839.0,0.079579]
[1728803397672,0.28207,62840.0,62839.0,0.14326945]
[1728803398176,0.28207,62840.0,62839.0,0.15914217]
[1728803401877,0.28207,62840.0,62839.0,0.079579]
[1728803403787,0.28207,62840.0,62839.0,0.15914217]
[1728803405391,0.28207,62840.0,62839.0,0.079579]
[1728803410384,0.28207,62840.0,62839.0,0.12734452]
[1728803411095,0.28207,62840.0,62839.0,0.079579]
[1728803426400,0.39207,62840.0,62839.0,0.079579]
[1728803449118,0.28207,62840.0,62839.0,0.079579]
[1728803449317,0.39207,62840.0,62839.0,0.079579]
[1728803451819,0.39207,62840.0,62839.0,0.14328785]
[1728803456128,0.50207,62840.0,62838.0,0.06370885]
[1728803456336,0.11098,62839.0,62837.0,0.06370885]
[1728803456526,0.11,62838.0,62836.0,0.06370885]
[1728803456726,0.11,62837.0,62833.0,0.15915017]
[1728803456930,0.11,62837.0,62836.0,0.04777178]
[1728803457325,0.11,62837.0,62835.0,0.04777178]
[1728803457926,0.08434,62836.0,62835.0,0.04777178]
[1728803458136,0.28008,62836.0,62835.0,0.04777178]
[1728803458337,0.28008,62836.0,62834.0,0.079585]
[1728803459833,0.28108,62836.0,62834.0,0.079585]
[1728803460132,0.28208,62836.0,62834.0,0.079585]
[1728803461624,0.28208,62836.0,62835.0,0.04773614]
[1728803462030,0.28208,62836.0,62834.0,0.079585]
[1728803462336,0.11,62835.0,62834.0,0.079585]
[1728803463438,0.111,62835.0,62834.0,0.079585]
[1728803463640,0.112,62835.0,62834.0,0.1273131]
[1728803465337,0.112,62835.0,62834.0,0.079585]
[1728803466642,0.4728,62835.0,62834.0,0.079585]
[1728803469553,0.112,62835.0,62834.0,0.079585]
[1728803469758,0.4728,62835.0,62834.0,0.079585]
[1728803472162,0.112,62835.0,62834.0,0.079585]
[1728803472362,0.4728,62835.0,62834.0,0.079585]
[1728803473359,0.112,62835.0,62834.0,0.079585]
[1728803473657,0.4728,62835.0,62834.0,0.079585]
[1728803473858,0.4728,62835.0,62834.0,0.1273131]
[1728803475655,0.112,62835.0,62834.0,0.1273131]
[1728803475854,0.4728,62835.0,62834.0,0.1273131]
[1728803476563,0.4728,62835.0,62834.0,0.079585]
[1728803476758,0.4728,62835.0,62834.0,0.1273131]
[1728803477355,0.112,62835.0,62834.0,0.1273131]
[1728803477563,0.4728,62835.0,62834.0,0.1273131]
[1728803478266,0.112,62835.0,62834.0,0.1273131]
[1728803478558,0.4728,62835.0,62834.0,0.1273131]
[1728803478765,0.2234,62835.0,62834.0,0.1273131]
[1728803479158,0.5842,62835.0,62834.0,0.1273131]
[1728803479362,0.5842,62835.0,62834.0,0.079585]
[1728803479756,0.2234,62835.0,62834.0,0.079585]
[1728803480157,0.5842,62835.0,62834.0,0.079585]
[1728803480761,0.2234,62835.0,62834.0,0.079585]
[1728803481258,0.5842,62835.0,62834.0,0.079585]
[1728803482860,0.65581,62835.0,62834.0,0.079585]
[1728803483567,0.29501,62835.0,62834.0,0.079585]
[1728803483763,0.74015,62835.0,62834.0,0.079585]
[1728803485674,0.37935,62835.0,62834.0,0.079585]
[1728803485968,0.74015,62835.0,62834.0,0.079585]
[1728803486465,0.74015,62835.0,62834.0,0.12731348]
[1728803486771,0.74015,62835.0,62834.0,0.079585]
[1728803487266,0.37935,62835.0,62834.0,0.079585]
[1728803487461,0.74015,62835.0,62834.0,0.079585]
[1728803488458,0.74015,62835.0,62834.0,0.14327902]
[1728803488667,0.75288,62835.0,62834.0,0.14327902]
[1728803489473,0.39208,62835.0,62834.0,0.14327902]
[1728803489672,0.75288,62835.0,62834.0,0.14327902]
[1728803489867,0.39208,62835.0,62834.0,0.14327902]
[1728803490068,0.75288,62835.0,62834.0,0.14327902]
[1728803490761,0.39208,62835.0,62834.0,0.14327902]
[1728803491075,0.75288,62835.0,62834.0,0.14327902]
[1728803491467,0.39208,62835.0,62834.0,0.14327902]
[1728803491666,0.75288,62835.0,62834.0,0.14327902]
[1728803492977,0.39208,62835.0,62834.0,0.14327902]
[1728803493275,0.75288,62835.0,62834.0,0.14327902]
[1728803493878,0.39208,62835.0,62834.0,0.14327902]
[1728803494272,0.75288,62835.0,62834.0,0.14327902]
[1728803494680,0.39208,62835.0,62834.0,0.14327902]
[1728803494975,0.75288,62835.0,62834.0,0.14329949]
[1728803495177,0.75288,62835.0,62834.0,0.079585]
[1728803495681,0.75288,62835.0,62834.0,0.12737279]
[1728803497372,0.39208,62835.0,62834.0,0.12737279]
[1728803497572,0.75288,62835.0,62834.0,0.12737279]
[1728803497876,0.39208,62835.0,62834.0,0.12737279]
[1728803498176,0.75288,62835.0,62834.0,0.12737279]
[1728803498364,0.75288,62835.0,62834.0,0.079585]
[1728803498971,0.39208,62835.0,62834.0,0.079585]
[1728803499168,0.75288,62835.0,62834.0,0.079585]
[1728803500370,0.39208,62835.0,62834.0,0.079585]
[1728803500564,0.75288,62835.0,62834.0,0.079585]
[1728803500770,0.39208,62835.0,62834.0,0.079585]
[1728803500983,0.75288,62835.0,62834.0,0.079585]
[1728803501477,0.39208,62835.0,62834.0,0.079585]
[1728803502068,0.75288,62835.0,62834.0,0.079585]
[1728803502478,0.39208,62835.0,62834.0,0.079585]
[1728803503273,0.75288,62835.0,62834.0,0.079585]
[1728803503771,0.39208,62835.0,62834.0,0.079585]
[1728803504078,0.75288,62835.0,62834.0,0.079585]
[1728803504983,0.75288,62835.0,62834.0,0.14330204]
[1728803506480,0.39208,62835.0,62834.0,0.14330204]
[1728803506683,0.75288,62835.0,62834.0,0.14330204]
[1728803507072,0.39208,62835.0,62834.0,0.14330204]
[1728803507473,0.75288,62835.0,62834.0,0.14330204]
[1728803508478,0.39208,62835.0,62834.0,0.14330204]
[1728803508676,0.75288,62835.0,62834.0,0.14330204]
[1728803508876,0.64288,62835.0,62834.0,0.14330204]
[1728803509587,0.28208,62835.0,62834.0,0.14330204]
[1728803510080,0.64288,62835.0,62834.0,0.14330204]
[1728803510494,0.64288,62835.0,62834.0,0.14330214]
[1728803511779,0.28208,62835.0,62834.0,0.14330214]
[1728803511979,0.64288,62835.0,62834.0,0.14330214]
[1728803512189,0.28208,62835.0,62834.0,0.14330214]
[1728803512389,0.64288,62835.0,62834.0,0.14330214]
[1728803512575,0.28208,62835.0,62834.0,0.14330214]
[1728803512776,0.64288,62835.0,62834.0,0.14330214]
[1728803513178,0.28208,62835.0,62834.0,0.14330214]
[1728803513685,0.64288,62835.0,62834.0,0.14330214]
[1728803513888,0.28208,62835.0,62834.0,0.14330214]
[1728803514186,0.64288,62835.0,62834.0,0.14330214]
[1728803514384,0.28208,62835.0,62834.0,0.14330214]
[1728803514581,0.64288,62835.0,62834.0,0.14330214]
[1728803514979,0.28208,62835.0,62834.0,0.079585]
[1728803515380,0.64288,62835.0,62834.0,0.079585]
[1728803516283,0.28208,62835.0,62834.0,0.079585]
[1728803516489,0.64288,62835.0,62834.0,0.079585]
[1728803516978,0.28208,62835.0,62834.0,0.079585]
[1728803517178,0.64288,62835.0,62834.0,0.079585]
[1728803517977,0.28208,62835.0,62834.0,0.079585]
[1728803518179,0.64288,62835.0,62834.0,0.079585]
[1728803518481,0.28208,62835.0,62834.0,0.079585]
[1728803518688,0.64288,62835.0,62834.0,0.079585]
[1728803518981,0.28208,62835.0,62834.0,0.079585]
[1728803519381,0.64288,62835.0,62834.0,0.079585]
[1728803519581,0.28208,62835.0,62834.0,0.079585]
[1728803519774,0.64288,62835.0,62834.0,0.079585]
[1728803519978,0.28208,62835.0,62834.0,0.079585]
[1728803520287,0.64288,62835.0,62834.0,0.079585]
[1728803520683,0.28208,62835.0,62834.0,0.079585]
[1728803520889,0.64288,62835.0,62834.0,0.079585]
[1728803522886,0.75288,62835.0,62834.0,0.079585]
[1728803523088,0.75288,62835.0,62832.0,0.02548546]
[1728803523287,0.75288,62835.0,62831.0,0.0477876]
[1728803523288,0.11,62833.0,62831.0,0.0477876]
[1728803523488,0.11,62833.0,62831.0,0.07283549]
[1728803524293,0.11,62833.0,62832.0,0.0477876]
[1728803524687,0.111,62833.0,62832.0,0.0477876]
[1728803524993,0.39108,62833.0,62832.0,0.0477876]
[1728803525583,0.39208,62833.0,62830.0,0.189591]
[1728803527890,0.39208,62833.0,62830.0,0.21420814]
[1728803528787,0.39208,62833.0,62830.0,0.10420814]
[1728803528986,0.39208,62833.0,62830.0,0.21420814]
[1728803529495,0.11,62831.0,62830.0,0.21420814]
[1728803530898,0.111,62831.0,62830.0,0.21420814]
[1728803531794,0.112,62831.0,62830.0,0.21420814]
[1728803533491,0.112,62831.0,62830.0,0.38682704]
[1728803537000,0.112,62831.0,62830.0,0.10420814]
[1728803537187,0.112,62831.0,62830.0,0.27688051]
[1728803537389,0.112,62831.0,62830.0,0.27682302]
[1728803538689,0.18362,62831.0,62830.0,0.27682302]
[1728803540593,0.18362,62831.0,62830.0,0.10420814]
[1728803543601,0.19635,62831.0,62830.0,0.10420814]
[1728803545801,0.20908,62831.0,62830.0,0.10420814]
[1728803548503,0.20908,62831.0,62830.0,0.27687644]
[1728803553300,0.20908,62831.0,62830.0,0.18377131]
[1728803554802,0.3921,62831.0,62830.0,0.18377131]
[1728803555601,0.3921,62831.0,62830.0,0.16792438]
[1728803559208,0.2821,62831.0,62830.0,0.16792438]
[1728803560211,0.2821,62831.0,62830.0,0.27792438]
[1728803560399,0.2821,62831.0,62830.0,0.21420814]
[1728803564706,0.2821,62831.0,62830.0,0.29377131]
[1728803567219,0.2821,62831.0,62830.0,0.21420814]
[1728803567707,0.3921,62831.0,62830.0,0.21420814]
[1728803573514,0.2821,62831.0,62830.0,0.21420814]
[1728803588323,0.00238771,62844.0,62830.0,1.41463068]
[1728803588522,0.00238771,62844.0,62842.0,0.189576]
[1728803589334,0.3618,62843.0,62842.0,0.189576]
[1728803589529,0.3628,62843.0,62842.0,0.189576]
[1728803590118,0.5131,62843.0,62842.0,0.189576]
[1728803590321,0.1523,62843.0,62842.0,0.189576]
[1728803590527,0.1523,62843.0,62842.0,0.23730131]
[1728803590722,0.1513,62843.0,62842.0,0.23730131]
[1728803590929,0.1523,62843.0,62842.0,0.23830131]
[1728803592233,0.1523,62843.0,62842.0,0.190576]
[1728803594529,0.1523,62843.0,62842.0,0.21558844]
[1728803598237,0.1523,62843.0,62842.0,0.2632462]
[1728803599732,0.1523,62843.0,62842.0,0.1532462]
[1728803600549,0.1523,62843.0,62842.0,0.10558844]
[1728803604440,0.1523,62843.0,62842.0,0.080576]
[1728803604943,0.1854,62843.0,62842.0,0.080576]
[1728803608142,0.1854,62843.0,62842.0,0.001]
[1728803608341,0.2167,62843.0,62842.0,0.001]
[1728803618443,0.2167,62843.0,62842.0,0.04875213]
[1728803618956,0.23426,62843.0,62842.0,0.001]
[1728803619855,0.23426,62843.0,62842.0,0.04875213]
[1728803621048,0.23426,62843.0,62842.0,0.001]
[1728803622755,0.59506,62843.0,62842.0,0.001]
[1728803623259,0.25887742,62843.0,62842.0,0.001]
[1728803623461,0.61967742,62843.0,62842.0,0.001]
[1728803623648,0.25887742,62843.0,62842.0,0.001]
[1728803623959,0.61967742,62843.0,62842.0,0.001]
[1728803626452,0.59506,62843.0,62842.0,0.001]
[1728803628763,0.23426,62843.0,62842.0,0.001]
[1728803637063,0.59506,62843.0,62842.0,0.001]
[1728803637866,0.23426,62843.0,62842.0,0.001]
[1728803638083,0.59506,62843.0,62842.0,0.001]